[Event "IX Famalicao Open 2022"]
[Site "Vila Nova de Famalicao"]
[Date "2022.07.29"]
[Round "8.11"]
[White "Romano, Joao"]
[Black "Afonso, Joao Pedro"]
[Result "1-0"]
[ECO "A28"]
[WhiteElo "2029"]
[BlackElo "1653"]
[Annotator "TA"]
[PlyCount "137"]
[EventDate "2022.07.25"]
[EventType "tourn"]
[EventCountry "POR"]
[SourceTitle "playchess.com"]
[Source "ChessBase"]
[SourceQuality "1"]
[TimeControl "5400+30"]

{[%evp 14,137,15,14,32,-112,-117,-136,-140,-131,-27,-13,-20,-24,0,-10,-10,-14,-16,-14,-15,-16,14,18,17,29,48,39,46,57,47,58,89,82,80,51,81,12,143,82,119,92,96,40,56,55,93,133,110,92,127,135,126,99,203,21,158,3,75,101,142,31,34,34,34,0,34,0,0,0,0,-419,0,0,0,0,0,0,8,26,2885,2406,29970,29972,29972,29973,29973,29974,29973,29972,29964,29963,29973,29973,29973,29974,29975,29975,29974,29974,29976,29977,29977,29978,29977,29979,29979,29980,29980,29981,29981,29982,29982,29983,29983,29984,29984,29985,29985,29986,29986,29987,29987,29988,29988,29989]} 1. c4 e5 2. Nc3 Nc6 3. Nf3 Nf6 4. e3 d5 5. cxd5 Nxd5 6. Bb5 Nxc3 7. bxc3 Bd6 8. d4 e4 {8...Bd7 is becoming the main line. A28: English Opening: Four Knights Variation.} 9. d5 (9. Nd2 $14 {stays ahead.}) 9... a6 $17 (9... exf3 $6 10. dxc6 O-O 11. Qxf3 $15) 10. dxc6 axb5 {Black is clearly better.} 11. Qd5 {[#]} bxc6 $146 (11... O-O $17 12. cxb7 Bxb7 13. Qxb7 exf3 14. Qxf3 Be5) ({Predecessor:} 11... exf3 12. cxb7 Bxb7 13. Qxb7 O-O 14. Qxf3 Qh4 15. Qc6 b4 16. Bb2 Qf6 17. Ke2 Ra5 18. Rhc1 Rc5 19. Qf3 Rf5 20. Qe4 Rxf2+ 21. Kd3 {0-1 (21) Lutsko,I (2313)-Kramich,A (1994) Minsk 2020}) 12. Qxc6+ $11 Bd7 13. Qxe4+ Be6 14. Nd4 Ra4 15. Nxe6 Rxe4 16. Nxd8 Kxd8 17. Ke2 c6 18. Rd1 Kc7 19. Rd4 $36 {[%mdl 2048] White is more active.} Rhe8 20. a4 {Threatens to win with axb5.} Rxd4 21. cxd4 $14 {[%mdl 4096] Endgame KRB-KRB} Ra8 22. a5 f5 23. Bd2 Kb7 24. Kd3 Rd8 25. Kc2 ({Better is} 25. a6+ $16 Ka7 26. Kc2) 25... Re8 (25... Ka6 $1 $11 {remains equal.}) 26. h3 ({White should try} 26. Kb3) 26... g5 27. f3 c5 28. dxc5 (28. g4 $16) 28... Bxc5 29. Re1 Ka6 30. e4 f4 31. Bc3 Rc8 {Hoping for ...Bd4.} 32. Kb3 b4 33. Bb2 ({And not} 33. Bxb4 Rb8 34. Kc4 Bxb4 $17) 33... Rd8 (33... Kxa5 $16 34. Rd1 Kb6) 34. e5 $2 (34. Bf6 $1 $18 {[%cal Rf6d8]} Rd2 35. e5 (35. Bxg5 Rxg2 36. Bxf4 Kxa5 $16)) 34... Kb5 {[#]} (34... Kxa5 $11 35. Kc4 Rc8) 35. Re4 $2 ({White should play} 35. e6 $1 $16 {[%cal Re6e7]}) 35... Rd3+ (35... Kxa5 $11 36. h4 gxh4) 36. Kc2 $16 Re3 37. e6 (37. Rxe3 $16 fxe3 38. Kd3) 37... Rxe4 38. fxe4 $14 {KB-KB} Be7 {Against Bf6} 39. Kb3 h5 40. Bc1 h4 41. Bb2 {Bg7 is the strong threat.} Kxa5 42. Kc4 $2 {[%mdl 8192] [#]} (42. Be5 $11 {and White has nothing to worry.}) 42... Kb6 $2 (42... g4 $1 $19 43. Be5 (43. hxg4 $2 Ka4 $19) 43... f3 44. gxf3 gxh3) 43. Bd4+ Kc6 44. Be5 b3 45. Kxb3 Kb5 46. Kc3 Kc5 $2 {[%mdl 8192] Black cannot hold the game after this.} (46... Kc6 $11) 47. Kd3 $18 {Ke2 would kill now.} Bd8 48. Ke2 {White mates.} Be7 49. Kf3 Kc4 50. Bg7 Kc5 51. Kg4 Kd6 52. Kf5 g4 53. Kxg4 Kxe6 54. Kxf4 Bc5 55. Kg4 Bf2 56. Kf3 Bg3 57. Bd4 Bd6 58. Bf2 Be7 59. Kg4 Ke5 60. Bxh4 Bf8 61. Kf3 Bh6 62. Bg3+ Ke6 63. Bf4 Bg7 64. g4 {[%cal Bg2g4,Bg4g5][%mdl 32]} Kf6 65. g5+ Kg6 66. Kg4 Bc3 67. h4 {[%cal Bh3h4,Bh4h5][%mdl 32]} Bd4 68. h5+ Kh7 69. Kf5 {Weighted Error Value: White=0.46/Black=0.45} 1-0

[Event "IX Famalicao Open 2022"]
[Site "Vila Nova de Famalicao"]
[Date "2022.07.30"]
[Round "9.1"]
[White "Abdisalimov, Abdimalik"]
[Black "Krishna C R G"]
[Result "1-0"]
[ECO "D15"]
[WhiteElo "2437"]
[BlackElo "2430"]
[Annotator "TA"]
[PlyCount "77"]
[EventDate "2022.07.25"]
[EventType "tourn"]
[EventCountry "POR"]
[SourceTitle "playchess.com"]
[Source "ChessBase"]
[SourceQuality "1"]
[TimeControl "5400+30"]

{[%evp 9,77,29,27,23,18,25,22,17,24,22,27,28,17,20,11,9,21,0,31,17,16,21,36,30,108,106,217,219,205,201,250,243,253,245,246,226,207,209,209,216,209,195,222,218,247,34,278,252,339,339,341,344,375,375,375,375,372,375,375,375,395,395,793,811,811,801,797,790,734,729]} 1. d4 d5 2. c4 c6 3. Nf3 Nf6 4. Nc3 a6 5. e3 Bf5 6. Ne5 {D15: Slav Defence: 4 Nc3 a6 and gambit lines after 4 Nc3 dxc4.} Nbd7 7. Qb3 {[%csl LRb7,LRd5]} Qc7 8. cxd5 {The position is equal.} (8. Nxd7 {feels hotter.} Qxd7 9. Na4 Qc7 10. Nb6) 8... Nxe5 9. dxe5 Nxd5 10. Nxd5 (10. Bc4 {looks sharper.} e6 11. e4 Nxc3 12. exf5 Qxe5+ 13. Be3) 10... cxd5 11. Bd2 Qxe5 12. Rc1 Bd7 13. Qb6 Qd6 14. Qxb7 Rb8 15. Qa7 {Black must now prevent Rc7.} Rxb2 16. Bxa6 {[#] Strongly threatening Bc8.} e5 $146 (16... f6 $11 {keeps the balance.} 17. a4 e5) ({Predecessor:} 16... f6 17. a4 Bxa4 18. Bc3 Rb3 19. O-O Qb8 20. Qd4 Bb5 21. Qxd5 Bxa6 22. Qc6+ Kf7 23. Qxa6 {½-½ (41) Dreev,A (2655)-Malakhov,V (2676) Sochi 2020}) 17. Bc8 $1 $16 {And now Bxd7+ would win.} Be7 (17... Bc6 $16 {might work better.}) 18. Bc3 $18 Bxc8 19. Bxb2 Qb4+ 20. Bc3 Qb5 21. a4 ({Inferior is} 21. Bxe5 Bb4+ 22. Bc3 Ba6 23. Qa8+ Ke7 24. Qa7+ Ke8 25. Qa8+ Kd7 26. Qa7+ Ke8 27. Qa8+ Ke7 28. Qa7+ Ke8 $17) 21... Qd3 {[%cal Oe8g8]} 22. Qb8 O-O {aiming for ...Ba6.} 23. Qb1 $1 ({Avoid the trap} 23. Qxe5 $2 Bf6 24. Qxd5 Qxd5 $19) 23... Qa6 24. Bxe5 Bd7 25. f3 Bh4+ 26. g3 $1 Bg5 27. Bd4 (27. f4 $18 Be7 28. Kf2) 27... Qa5+ $2 {[#] This costs Black the game.} (27... Bxe3 $1 $14 28. Bxe3 d4) 28. Ke2 $1 Bxa4 {Threatens to win with ...Bb5+.} 29. Rc5 {Against Bb5+} Qa6+ 30. Kf2 Be7 31. Rc7 Qe6 {[#]} 32. Bxg7 $1 {[%mdl 512]} Kxg7 33. Qa1+ Bf6 34. Qxa4 d4 35. exd4 Ra8 $2 (35... Rb8 36. Rc2 Rb3) 36. Qxa8 {White is clearly winning.} Bxd4+ {[#]} 37. Kf1 $1 Qe3 {[#]} 38. Rxf7+ $3 Kxf7 39. Qa2+ {Weighted Error Value: White=0.13 (very precise) /Black=0.27 (precise)} 1-0

[Event "IX Famalicao Open 2022"]
[Site "Vila Nova de Famalicao"]
[Date "2022.07.30"]
[Round "9.2"]
[White "Martinez Duany, Lelys Stanley"]
[Black "Nigmatov, Ortik"]
[Result "1/2-1/2"]
[ECO "B51"]
[WhiteElo "2497"]
[BlackElo "2437"]
[Annotator "TA"]
[PlyCount "118"]
[EventDate "2022.07.25"]
[EventType "tourn"]
[EventCountry "POR"]
[SourceTitle "playchess.com"]
[Source "ChessBase"]
[SourceQuality "1"]
[TimeControl "5400+30"]

{[%evp 9,118,16,24,17,24,24,29,27,35,22,44,43,40,10,12,15,11,15,13,8,37,23,27,16,19,18,32,2,0,-4,-18,-20,-23,-13,-9,-35,3,-17,0,0,0,0,0,-7,0,-168,-153,-210,-136,-138,-132,-136,-120,-118,-142,-150,-153,-116,-79,-80,-92,-89,-80,-87,-82,-83,-42,-92,-18,-37,-12,-12,-22,-27,0,0,0,0,-5,-7,0,0,0,0,0,0,0,0,0,0,0,-9,-9,-9,-10,-9,0,0,0,-8,0,0,0,0,0,0,0,0,0,0,0]} 1. e4 {[%emt 0:00:05]} c5 {[%emt 0:00:14]} 2. Nf3 {[%emt 0:00:37]} d6 {[%emt 0:00:07]} 3. Bb5+ {[%emt 0:01:27]} Nd7 {[%emt 0:00:26]} 4. O-O {[%emt 0:00:43]} a6 {[%emt 0:00:11]} 5. Bd3 {[%emt 0:00:22]} Ngf6 {[%emt 0:02:59]} 6. Re1 {[%emt 0:01:09] B51: Sicilian: Moscow Variation (3 Bb5+) without 3...Bd7.} e5 {[%emt 0:04:17]} 7. a4 {[%emt 0:01:02]} Be7 {[%emt 0:00:21]} 8. Bc4 {[%emt 0:01:30] White has an edge.} O-O {[%emt 0:00:12]} 9. d3 {[%emt 0:00:26] [#]} Ne8 $146 {[%emt 0:19:07]} ({Predecessor:} 9... Qe8 10. Nbd2 Nb6 11. Bb3 Be6 12. Bxe6 fxe6 13. a5 Nc8 14. Nc4 Nh5 15. Ng5 Bxg5 16. Bxg5 {1-0 (61) Pinter,E (2407)-Rachela,M (2244) Slovakia 2003}) 10. Nc3 {[%emt 0:02:17]} Nc7 {[%emt 0:01:05]} 11. Ne2 {[%emt 0:01:46]} Nb8 {[%emt 0:06:15]} 12. Ng3 {[%emt 0:00:27]} Nc6 {[%emt 0:00:14]} 13. c3 {[%emt 0:09:22]} Rb8 {[%emt 0:00:17]} 14. h3 {[%emt 0:03:59]} b5 {[%emt 0:03:01]} 15. axb5 {[%emt 0:00:07]} axb5 {[%emt 0:00:03]} 16. Bb3 {[%emt 0:01:04]} Re8 {[%emt 0:05:20]} 17. Nh2 {[%emt 0:02:51][%cal Bf3h2,Bh2g4,Bg4e3,Be3f5][%mdl 32]} Be6 {[%emt 0:14:27]} 18. Ng4 {[%emt 0:01:29]} Qd7 {[%emt 0:09:33]} 19. Nf5 {[%emt 0:07:05]} Bxf5 {[%emt 0:04:14]} 20. exf5 {[%emt 0:00:15]} Qxf5 {[%emt 0:00:22]} 21. Ne3 {[%emt 0:00:15] Prevents d5.} Qd7 {[%emt 0:06:45]} 22. Qf3 {[%emt 0:00:17] Against d5} Ne6 {[%emt 0:02:10]} 23. Nf5 {[%emt 0:05:10]} Bf8 {[%emt 0:00:36]} 24. Ra6 {[%emt 0:01:07]} c4 {[%emt 0:10:03]} 25. dxc4 {[%emt 0:03:08]} ({Much weaker is} 25. Rxc6 cxb3 26. Ra6 Nc5 $17) ({But not} 25. Qxc6 Qxc6 26. Rxc6 cxb3 $15) 25... e4 $1 {[%emt 0:01:28]} 26. Qg3 {[%emt 0:02:18]} ({Wrong is} 26. Qxe4 $2 Nc5 27. Qg4 Rxe1+ $19) 26... Nc5 {[%emt 0:02:27]} 27. Rxc6 $2 {[%emt 0:14:13] [#]} Qxf5 $19 {[%emt 0:00:07]} 28. Ba2 {[%emt 0:03:21]} (28. Rxc5 $17 Qxc5 29. Qe3) 28... Qd7 {[%emt 0:00:48]} 29. Rxc5 {[%emt 0:05:20]} dxc5 {[%emt 0:00:01]} 30. cxb5 {[%emt 0:00:09]} Rxb5 {[%emt 0:00:16]} 31. Bc4 {[%emt 0:00:28]} Rb6 {[%emt 0:00:04]} 32. b3 {[%emt 0:00:41]} Rg6 {[%emt 0:00:22]} 33. Qh4 {[%emt 0:00:28]} Qf5 {[%emt 0:00:34] Against Qh5} 34. Qf4 {[%emt 0:00:59]} Qxf4 {[%emt 0:03:24]} 35. Bxf4 {[%emt 0:00:07]} Bd6 {[%emt 0:00:58]} 36. Be3 {[%emt 0:00:08]} Rd8 {[%emt 0:02:16]} 37. Kf1 {[%emt 0:00:53]} Kf8 {[%emt 0:01:00]} 38. Ra1 {[%emt 0:00:51]} (38. Rd1 $15) 38... f5 {[%emt 0:01:45]} ({Better is} 38... Be7 $17) 39. g3 {[%emt 0:00:11]} Be7 {[%emt 0:00:20]} 40. h4 {[%emt 0:00:34]} Rc6 {[%emt 0:00:52]} 41. Ra7 {[%emt 0:01:42]} h6 {[%emt 0:01:22]} 42. h5 {[%emt 0:02:29] The position is equal.} Bf6 {[%emt 0:00:20]} 43. Bb5 {[%emt 0:01:19] This bishop pair is nice.} Rcc8 {[%emt 0:00:43]} 44. Bd7 {[%emt 0:00:29]} Rb8 {[%emt 0:00:31]} 45. Bxc5+ {[%emt 0:00:20]} Be7 {[%emt 0:00:04]} 46. Bxe7+ {[%emt 0:01:28]} Kxe7 {[%emt 0:00:02]} 47. Bxf5+ $11 {[%emt 0:00:09][%mdl 4096] Endgame KRR-KRB} Kf6 {[%emt 0:00:03]} 48. Bxe4 {[%emt 0:00:18]} Rxb3 {[%emt 0:00:04]} 49. Bg6 {[%emt 0:01:00]} Rf8 {[%emt 0:01:04]} 50. Rc7 {[%emt 0:01:48]} Rb2 {[%emt 0:00:01]} 51. Kg2 {[%emt 0:00:42]} Ke6 {[%emt 0:01:42]} 52. Rxg7 {[%emt 0:00:35]} Rfxf2+ {[%emt 0:00:19]} 53. Kh3 {[%emt 0:00:08]} Kf6 {[%emt 0:00:43]} 54. Rc7 {[%emt 0:00:36]} Rfe2 {[%emt 0:00:48]} 55. Rf7+ {[%emt 0:00:59]} Ke6 {[%emt 0:00:28]} 56. Rh7 {[%emt 0:00:25]} Re3 {[%emt 0:00:12]} 57. Rxh6 {[%emt 0:01:36]} Rxc3 {[%emt 0:00:07]} 58. Rh7 {[%emt 0:00:50]} Re2 {[%emt 0:00:44]} 59. Rh8 {[%emt 0:01:38] [#] Black must now prevent Re8+.} Ree3 {[%emt 0:00:21] And White is the lucky defender.  Weighted Error Value: White=0.11 (very precise) /Black=0.10 (very precise)} 1/2-1/2

[Event "IX Famalicao Open 2022"]
[Site "Vila Nova de Famalicao"]
[Date "2022.07.30"]
[Round "9.4"]
[White "Spraggett, Kevin"]
[Black "Monteiro, Paulo Alexandre G"]
[Result "1/2-1/2"]
[ECO "A04"]
[WhiteElo "2487"]
[BlackElo "1980"]
[Annotator "TA"]
[PlyCount "87"]
[EventDate "2022.07.25"]
[EventType "tourn"]
[EventCountry "POR"]
[SourceTitle "playchess.com"]
[Source "ChessBase"]
[SourceQuality "1"]
[TimeControl "5400+30"]

{[%evp 14,87,23,30,61,49,41,19,18,6,11,6,6,4,6,-17,-9,-53,-52,-54,-54,-56,-54,-53,-14,-56,-50,-54,-47,-52,-52,-50,-39,-45,-15,-25,-25,-37,-20,-48,-48,-53,-35,-200,-48,-51,0,-29,0,-28,-35,-26,-21,-116,-81,-110,-116,-116,-112,-120,-82,-27,0,-116,0,0,0,0,0,0,0,0,0,0,0,0]} 1. Nf3 c5 2. c4 b6 3. g3 Nf6 4. Bg2 Bb7 5. O-O e6 6. Nc3 d6 7. Re1 Be7 8. e4 Nbd7 {A30: Symmetrical English: Double Fianchetto and Hedgehog.} 9. d3 O-O 10. h3 a6 11. Nh2 {[%cal Oe4e5]} Ne5 12. f4 Nc6 13. Nf3 Nd7 14. g4 {[#]} Nd4 $146 ({Predecessor:} 14... Rb8 15. g5 Re8 16. h4 Ba8 17. a4 Bf8 18. Be3 Nb4 19. Bf2 Bc6 20. Qe2 b5 21. axb5 axb5 22. cxb5 Bxb5 23. Nxb5 Rxb5 {0-1 (47) Nithander,V (2438)-Henrichs,T (2493) Gothenburg 2012}) 15. Nxd4 (15. Be3 {keeps more tension.} e5 16. f5 b5 17. Bf2) 15... cxd4 16. Ne2 e5 17. Rf1 b5 18. b3 b4 19. Kh1 (19. a3 $5 {[%cal Ra3b4]}) 19... Nc5 20. Ng1 a5 21. Nf3 a4 {...axb3 is the strong threat.} 22. Rb1 axb3 23. axb3 Nd7 24. Qe2 h6 25. Rg1 Ra7 26. f5 Nc5 27. Rb2 Ra1 28. Bd2 $2 (28. Qc2 $15) 28... Rxg1+ $2 (28... Qa5 $19 {Hoping for ...Rxg1+.} 29. Bc1 Ra8) 29. Kxg1 $15 Qb6 ({Black should play} 29... Qa5 $15 30. Rb1 Re8) 30. g5 hxg5 31. Bxg5 Bxg5 32. Nxg5 {[#] White wants to mate with Qh5.} f6 33. Nf3 (33. Ne6 $11 {remains equal.} Nxe6 34. fxe6) 33... Ra8 $17 34. Nh4 {[%cal Bf3h4,Bh4g6,Bg6e7][%mdl 32]} Qa5 {Threatens to win with ...Qa1+.} 35. Kh2 Qa1 {[%cal Oc5d3] [#] Strongly threatening ...Nxd3!} 36. Rd2 {[%cal Bb2d2,Bd2d1,Bd1b1][%mdl 32]} Nxb3 37. Rd1 Qa2 ({Better is} 37... Qa4 $11 38. Qh5 Qe8) 38. Qh5 Qf2 (38... Nc5 $17 {aiming for ...b3.} 39. Ng6 Re8) 39. Ng6 $1 $36 {[%mdl 2048] White has the initiative. The position is equal.} Qe3 40. Rb1 {Dancing on a razor blade.} Qxd3 41. Ne7+ Kf8 42. Ng6+ Kg8 43. Ne7+ Kf8 44. Ng6+ {Weighted Error Value: White=0.21 (precise) /Black=0.19 (very precise)} 1/2-1/2

[Event "IX Famalicao Open 2022"]
[Site "Vila Nova de Famalicao"]
[Date "2022.07.30"]
[Round "9.5"]
[White "Aditya Mittal"]
[Black "Goncalves, Samuel Jesus P"]
[Result "1-0"]
[ECO "D18"]
[WhiteElo "2480"]
[BlackElo "1957"]
[Annotator "TA"]
[PlyCount "75"]
[EventDate "2022.07.25"]
[EventType "tourn"]
[EventCountry "POR"]
[SourceTitle "playchess.com"]
[Source "ChessBase"]
[SourceQuality "1"]
[TimeControl "5400+30"]

{[%evp 19,74,0,0,-8,0,6,41,48,61,20,45,34,50,50,66,43,147,154,248,255,270,253,380,353,384,385,401,277,268,193,873,858,783,617,984,857,861,861,850,854,825,856,841,835,831,838,718,704,969,898,29987,29988,29994,29995,29995,29996,29999]} 1. Nf3 {[%emt 0:00:03]} d5 {[%emt 0:00:07]} 2. d4 {[%emt 0:00:05]} Nf6 {[%emt 0:00:05]} 3. c4 {[%emt 0:00:02]} c6 {[%emt 0:00:06]} 4. Nc3 {[%emt 0:00:06]} dxc4 {[%emt 0:00:07]} 5. a4 {[%emt 0:00:04]} Bf5 {[%emt 0:00:07]} 6. e3 {[%emt 0:00:05]} e6 {[%emt 0:00:03]} 7. Bxc4 {[%emt 0:00:03]} Bb4 {[%emt 0:00:06]} 8. O-O {[%emt 0:00:05]} O-O {[%emt 0:00:05]} 9. Nh4 {[%emt 0:00:09]} Nbd7 {[%emt 0:00:05]} 10. Nxf5 {[%emt 0:00:24]} exf5 {[%emt 0:00:06]} 11. h3 {[%emt 0:00:16] D18: Slav Defence: 5 a4 Bf5 6 e3.} Qe7 {[%emt 0:03:19]} 12. a5 {[%emt 0:14:58] [#]} Rfd8 $146 {[%emt 0:03:41][%cal Od7e5]} ({Predecessor:} 12... Ne4 13. Qb3 Ndf6 14. Bd3 Rad8 15. Ne2 c5 16. Rd1 Qc7 17. a6 b6 18. f3 Nd6 {1-0 (90) Fominykh,M (2279)-Goryachkina,A (2397) Khanty-Mansiysk 2012}) 13. Qf3 {[%emt 0:03:41] White is slightly better.} g6 {[%emt 0:00:31]} 14. g4 {[%emt 0:00:07]} fxg4 {[%emt 0:00:39]} 15. hxg4 {[%emt 0:00:06]} h5 {[%emt 0:04:14]} 16. gxh5 {[%emt 0:02:32]} Nxh5 {[%emt 0:00:43]} 17. Qe4 {[%emt 0:08:55] Threatens to win with Qxg6+. White is more active.} Qd6 {[%emt 0:05:33] [#]} ({Better is} 17... Qg5+ $14 18. Qg2 Qxg2+ 19. Kxg2 Ndf6) 18. Qg2 $1 $16 {[%emt 0:00:56]} Nf8 {[%emt 0:17:18]} (18... Re8 $16 {was called for.} 19. Ne4 Rxe4 20. Qxe4 Kg7) 19. Ne4 $18 {[%emt 0:01:29]} Qc7 {[%emt 0:00:25]} 20. f4 {[%emt 0:08:52][%cal Bf2f4,Bf4f5,Bf5f6][%mdl 32]} Re8 {[%emt 0:05:34]} (20... Rd7 {might work better.} 21. f5 Kh8 22. fxg6 fxg6) 21. Ng5 {[%emt 0:12:58]} Re7 {[%emt 0:01:51]} 22. f5 {[%emt 0:00:17]} Kh8 {[%emt 0:03:48]} 23. f6 {[%emt 0:06:40]} Rd7 {[%emt 0:00:42]} 24. Rf3 {[%emt 0:03:27] Strongly threatening Rh3.} Nh7 $2 {[%emt 0:05:59]} (24... c5) 25. Nxh7 {[%emt 0:04:14]} Kxh7 {[%emt 0:00:07]} 26. Rh3 {[%emt 0:00:47][%cal Oh3h5] White threatens Rxh5+! and mate.} Rg8 {[%emt 0:00:34]} 27. Bd3 {[%emt 0:02:33][%cal Rh3h5]} Kh8 {[%emt 0:01:47]} 28. Qg5 {[%emt 0:04:35][%cal Rg5h6]} Bf8 {[%emt 0:00:20] Prevents Qh6+.} 29. Kh1 {[%emt 0:01:17]} Rd5 {[%emt 0:01:27] [#]} 30. Bf5 $1 {[%emt 0:00:07][%mdl 512]} Rxf5 {[%emt 0:02:07] [#]} 31. Qxf5 $3 {[%emt 0:00:02][%mdl 512]} Bh6 {[%emt 0:00:48]} 32. Qf3 {[%emt 0:00:09]} Qd6 {[%emt 0:02:59]} 33. e4 {[%emt 0:00:55]} Kh7 {[%emt 0:02:12]} 34. Bxh6 {[%emt 0:01:08] White wants to mate with Rxh5.} Kxh6 {[%emt 0:00:07]} 35. Rg1 {[%emt 0:00:31] White mates.} Qd8 {[%emt 0:05:24]} 36. Qf4+ {[%emt 0:00:52]} Kh7 {[%emt 0:00:48] [#]} 37. Qf5 $3 {[%emt 0:00:14][%mdl 512]} gxf5 {[%emt 0:01:02]} (37... Rg7 38. Qxh5+) 38. Rxh5# {[%emt 0:00:04] Black did not feel at home in the position after the opening.  Weighted Error Value: White=0.11 (very precise) /Black=0.76} 1-0

[Event "IX Famalicao Open 2022"]
[Site "Vila Nova de Famalicao"]
[Date "2022.07.30"]
[Round "9.6"]
[White "Borges, Guilherme Deola"]
[Black "Rodriguez Lopez, Rafael"]
[Result "0-1"]
[ECO "D97"]
[WhiteElo "2185"]
[BlackElo "2172"]
[Annotator "TA"]
[PlyCount "60"]
[EventDate "2022.07.25"]
[EventType "tourn"]
[EventCountry "POR"]
[SourceTitle "playchess.com"]
[Source "ChessBase"]
[SourceQuality "1"]
[TimeControl "5400+30"]

{[%evp 19,60,0,0,0,0,0,0,0,2,0,0,0,27,-177,-172,-161,-172,-173,-184,-157,61,75,60,8,8,0,6,0,2,-8,-8,-8,-8,-8,-6,-31,-37,-65,-11,-10,-9,-29982,-29983]} 1. d4 Nf6 2. c4 g6 3. Nc3 d5 4. Nf3 Bg7 5. Qb3 dxc4 6. Qxc4 O-O 7. e4 a6 8. Be2 b5 9. Qb3 c5 10. dxc5 Be6 11. Qc2 {D97: Grünfeld: Russian System: 7 e4, replies other than 7...Bg4.} Nbd7 12. Be3 Rc8 $1 13. Rd1 {The position is equal.} b4 {13...Qa5 is more fashionable.} 14. Na4 {Threatens to win with Nd4.} Qa5 {Hoping for ...b3+.} 15. O-O {Strongly threatening Ng5.} Ng4 {[#]} 16. Rc1 $146 ({Don't play} 16. c6 Nxe3 17. fxe3 Nb6 $17) (16. Bd4 $1 $11 {and White is okay.}) ({Predecessor:} 16. Bd4 Bxd4 17. Nxd4 Nxc5 18. Nxc5 Rxc5 19. Qd2 Nf6 20. Nxe6 fxe6 21. Qd4 {1-0 (52) Vorobiov,E (2592)-Schut,L (2286) Paleochora 2010}) 16... Nxe3 $19 17. fxe3 Bh6 {A strong pair of Bishops.} 18. Kf2 Nf6 {...Ng4+ is the strong threat.} 19. h3 {Prevents Ng4+.} Nxe4+ $2 20. Qxe4 $14 Qxa4 21. a3 ({White should play} 21. Qh4 $14 Kg7 22. c6 (22. Qxe7 $2 Rfe8 $19)) 21... a5 $11 22. axb4 axb4 23. Nd4 {Prevents Qb3.} b3 24. Bf3 {[%cal Od4f5]} Qa2 25. Nxe6 Qxb2+ 26. Kg3 fxe6 27. Qxe6+ Kh8 28. c6 Qd2 (28... Bg7 $15 29. Rb1 Qe5+ 30. Qxe5 Bxe5+ 31. Kf2 b2) 29. Qxb3 Qd6+ ({Much less strong is} 29... Bxe3 30. Qc3+ Qxc3 31. Rxc3 Bf4+ 32. Kf2 $16) 30. Kg4 $2 {[%mdl 8192] [#]} (30. Kf2 $11) 30... Rf4+ $3 {[%mdl 512] Weighted Error Value: White=0.53/Black=0.25 (precise)} 0-1